Cogmind - Beta 14 @@@ ROGUE MODE // 2024.08.14 @ 03:45:27 Player: Khanable Result: Smashed by cave-in Performance ------------- Evolutions (1) 500 Regions Visited (2) 400 Robots Destroyed (56) 280 Value Destroyed (1134) 1134 Prototype IDs (4) 80 Alien Tech Used (0) 0 Bonus (0) 0 TOTAL SCORE: 2394 Bonus ------- None Cogmind --------- Core Integrity 0/400 Matter 173/300 Energy 125/125 System Corruption 7% Temperature Cool (0) Movement Rolling (120) Ox2 Location -9/Materials Parts ------- > --- POWER (1) -------- Light Ion Engine > --- PROPULSION (4) --- Armored Wheel Flight Unit > --- UTILITY (2) ------ Large Storage Unit Hardened Light Armor Plating > --- WEAPON (2) ------- Heavy Assault Rifle Mining Claw > --- INVENTORY (15) --- Light Ion Engine Flight Unit Flight Unit Small Storage Unit Structural Scanner Sensor Array Improved Terrain Scanner ECM Suite Weapon Shielding Hardened Light Armor Plating Hardened Light Armor Plating Heavy Assault Rifle Improved Assault Rifle Improved Light Cannon Rocket Launcher Peak State ------------ > --- POWER ------------ Light Nuclear Core > --- PROPULSION ------- Flight Unit Flight Unit Flight Unit Flight Unit > --- UTILITY ---------- Small Storage Unit Structural Scanner > --- WEAPON ----------- Improved Light Cannon Improved Light Cannon > --- INVENTORY -------- Sensor Array Improved Terrain Scanner Hardened Light Armor Plating Hardened Light Armor Plating Mini Grenade Launcher Mining Claw [Rating: 14] Favorites ----------- Power Ion Engine Engine Ion Engine Power Core Light Nuclear Core Propulsion Wheel Wheel Wheel Flight Unit Flight Unit Utility Small Storage Unit Device Structural Scanner Storage Small Storage Unit Protection Hardened Light Armor Plating Weapon Improved Light Cannon Energy Gun Improved EM Shotgun Ballistic Gun Assault Rifle Ballistic Cannon Improved Light Cannon Launcher Mini Grenade Launcher Slashing Weapon Mining Claw Build | -11 -10 -9 ------- Run | Yrd Mat Mat Slots Evolved 2 | . . 2 Power . | . . . Propulsion 2 | . . 2 Utility . | . . . Weapon . | . . . Parts Attached 59 | 8 13 38 Power 8 | 1 1 6 Engine 7 | 1 . 6 Core 1 | . 1 . Reactor . | . . . Propulsion 18 | 3 4 11 Treads . | . . . Leg . | . . . Wheel 10 | 3 2 5 Hover . | . . . Flight 8 | . 2 6 Utility 13 | 2 3 8 Device 8 | 1 3 4 Storage 2 | 1 . 1 Processor . | . . . Hackware . | . . . Protection 3 | . . 3 Artifact . | . . . Weapon 20 | 2 5 13 Energy Gun 1 | . . 1 Energy Cannon . | . . . Ballistic Gun 5 | 2 . 3 Ballistic Cannon 7 | . 4 3 Launcher 2 | . . 2 Special Weapon . | . . . Impact Weapon . | . . . Slashing Weapon 5 | . 1 4 Piercing Weapon . | . . . Special Melee Weapon . | . . . Unidentified Prototypes 2 | . . 2 Parts Lost 17 | . 2 15 Power 3 | . . 3 Propulsion 9 | . 1 8 Utility 1 | . . 1 Weapon 4 | . 1 3 Highest Loss Streak 5 | . 1 5 To Critical Strikes . | . . . Average Slot Usage (%) 87 | . 97 79 Engine 8 | . 9 8 Core 2 | . 4 . Wheel 18 | . 23 15 Flight 8 | . 3 12 Device 7 | . 14 2 Storage 12 | . 14 11 Protection 4 | . . 7 Ballistic Gun 6 | . 5 7 Ballistic Cannon 11 | . 16 7 Launcher 1 | . . 3 Slashing Weapon 3 | . 4 3 Peak Build Rating 14 | 7 12 14 Average Rating 10 | 5 9 11 On Entrance 6 | . 7 12 Naked Turns . | . . . Heaviest Build 38 | 14 19 38 Greatest Support 42 | 20 20 42 Greatest Overweight (x) 11 | 1 2 11 Average Overweight (x) . | . . 1 Largest Inventory Capacity 15 | 8 8 15 Average Capacity 10 | 7 8 13 Most Carried 15 | 5 8 15 Average Carried 8 | 3 7 9 Final Capacity 15 | 8 8 15 Final Carried 15 | 5 8 15 Class Distribution -------------------- 79% | Mutant 11% | Scavenger-Mutant 8% | Scavenger-Sprinter Dominant Class ---------------- Mutant | -10/Materials Mutant | -9/Materials Resources | -11 -10 -9 ----------- Run | Yrd Mat Mat Matter Collected 1490 | 332 399 759 Remotely . | . . . Salvage Created 1256 | 191 224 841 Parts 129 | 18 33 78 Haulers Intercepted 3 | . . 3 Recyclers Shooed 1 | 1 . . Parts Field Recycled . | . . . Retrieved Matter . | . . . Parts Self-Destructed . | . . . Prevented . | . . . Kills | -11 -10 -9 ------- Run | Yrd Mat Mat Combat Hostiles Destroyed 34 | . 11 23 Melee 4 | . . 4 Guns 4 | . 2 2 Cannons 16 | . 9 7 AOE 10 | . . 10 Classes Destroyed 11 | 2 6 3 Worker 3 | . 1 2 Builder 5 | . 1 4 Tunneler 6 | 5 . 1 Hauler 3 | . . 3 Recycler 1 | 1 . . Operator 1 | . 1 . Watcher 3 | . 1 2 Swarmer 14 | . 6 8 Grunt 12 | . 5 7 Brawler 1 | . . 1 Sentry 7 | . . 7 Best Kill Streak 8 | 6 3 8 Combat Bots Only 7 | . 3 7 Max Kills in Single Turn 4 | 1 1 4 Gunslinging . | . . . Exploded 4 | . . 4 Melee 1 | . . 1 Uniques/NPCs Destroyed . | . . . Combat | -11 -10 -9 -------- Run | Yrd Mat Mat Hostile Shots Fired 224 | . 53 171 Missed 58 | . 12 46 Damage Taken 2129 | . 464 1665 Core 557 | . 120 437 Absorbed by Shields . | . . . Core Remaining (%) 76 | 100 52 . Volleys Fired 121 | 13 54 54 Largest 2 | 2 2 2 Hottest 78 | 40 78 78 Shots Fired 212 | 26 98 88 Gun 63 | 26 11 26 Cannon 133 | . 87 46 Launcher 16 | . . 16 Special . | . . . Kinetic 196 | 26 98 72 Thermal . | . . . Explosive 16 | . . 16 Electromagnetic . | . . . Robot Hit Streak 11 | 3 11 9 Robot Miss Streak 6 | 5 6 4 Penetration Max . | . . . Secondary Targets . | . . . Shots Hit Robots 97 | 9 36 52 Core Hits 70 | 8 17 45 Critical Kills 1 | . 1 . Critical Parts Destroyed . | . . . Critical Strikes 4 | . 4 . Destroy 1 | . 1 . Blast 3 | . 3 . Melee Attacks 46 | . 23 23 Impact . | . . . Slashing 46 | . 23 23 Piercing . | . . . Sneak Attacks 4 | . 2 2 Combat Hostiles . | . . . Follow-up Attacks . | . . . Damage Inflicted 2922 | 106 806 2010 Guns 389 | 106 32 251 Cannons 1067 | . 650 417 Explosions 989 | . . 989 Melee 423 | . 124 299 Ramming 54 | . . 54 Kinetic 1456 | 106 682 668 Thermal . | . . . Explosive 989 | . . 989 Electromagnetic . | . . . Impact . | . . . Slashing 423 | . 124 299 Piercing . | . . . Highest Corruption 7 | . . 7 Average Corruption 4 | . . 4 Corruption Purged . | . . . Corruption Blocked . | . . . Effects 40 | . . 40 Message Errors 7 | . . 7 Matter Fused 14 | . . 14 Heat Flow Errors 6 | . . 6 Energy Discharges 2 | . . 2 Parts Rejected 2 | . . 2 Data Loss (minor) 5 | . . 5 Data Loss (major) 1 | . . 1 Misfires 1 | . . 1 Alerts 1 | . . 1 Weapon Failures 1 | . . 1 Overload Shots . | . . . Overflow Damage 131 | . 36 95 Projectiles 13 | . 13 . Explosions 80 | . . 80 Melee 38 | . 23 15 Knockbacks 12 | . 8 4 Impact . | . . . Kinetic 12 | . 8 4 Secondary . | . . . Self-Inflicted Damage 214 | . . 214 Shots 5 | . . 5 Rammed 12 | . . 12 Targets Rammed 12 | . . 12 Kicked . | . . . Crushed . | . . . Highest Temperature 329 | . 329 255 Average Temperature 68 | . 71 64 Received Heat Transfer 576 | . 192 384 Effects 2 | . 1 1 Energy Bleed 1 | . . 1 Damage (minor) 1 | . 1 . Siege Activations . | . . . Robots Corrupted . | . . . Combat Hostiles . | . . . Parts Fried . | . . . Impact Corruptions . | . . . Robots Melted . | . . . Combat Hostiles . | . . . Parts Melted . | . . . Heat Transferred . | . . . Parts Sabotaged . | . . . Parts Stolen . | . . . Parts Stripped . | . . . Power Chain Reactions . | . . . Alert | -11 -10 -9 ------- Run | Yrd Mat Mat Peak Influence 407 | 30 369 407 Initial 53 | . 19 53 Average 189 | 12 160 228 Maximum Alert Level 2 | . 1 2 Low Security (%) 51 | 100 56 44 Level 1 47 | . 43 55 Level 2 . | . . . Level 3 . | . . . Level 4 . | . . . Level 5 . | . . . High Security . | . . . Max Security . | . . . Squads Dispatched 2 | . 1 1 Investigation 1 | . 1 . Extermination . | . . . Reinforcement 1 | . . 1 Assault . | . . . Garrison . | . . . Intercept . | . . . Searches Triggered . | . . . Construction Impeded . | . . . Haulers Reinforced . | . . . Active Scanning Responses . | . . . Cargo Convoy Interrupts . | . . . Stealth | -11 -10 -9 --------- Run | Yrd Mat Mat Distress Signals 3 | . 2 1 Communications Jammed . | . . . Distress Signals . | . . . Times Spotted 61 | . 26 35 Peak Tracking Total 9 | . 4 9 Tactical Retreats 6 | . 4 2 Traps | -11 -10 -9 ------- Run | Yrd Mat Mat Traps Triggered 5 | . 1 4 Indirectly . | . . . Trap Hack Attempts . | . . . Triggered . | . . . Disarmed . | . . . Reprogrammed . | . . . Reused . | . . . Traps Extracted . | . . . Installed . | . . . Triggered . | . . . Machines | -11 -10 -9 ---------- Run | Yrd Mat Mat Machines Disabled 6 | . . 6 Max in Single Turn 2 | . . 2 Machines Repaired . | . . . Machines Dismantled . | . . . Machines Sabotaged . | . . . Overloaded Fab Kills . | . . . Hacking | -11 -10 -9 --------- Run | Yrd Mat Mat Machines Accessed 12 | . 8 4 Terminals 10 | . 7 3 Fabricators . | . . . Repair Stations . | . . . Recycling Units 2 | . 1 1 Scanalyzers . | . . . Garrison Access . | . . . Total Hacks 20 | . 15 5 Successful 11 | . 7 4 Failed 9 | . 8 1 Catastrophic 2 | . 2 . Database Lockouts . | . . . Manual 8 | . 8 . Terminals 16 | . 12 4 Fabricators . | . . . Repair Stations . | . . . Recycling Units 4 | . 3 1 Scanalyzers . | . . . Garrison Access . | . . . Terminal Hacks 6 | . 3 3 Prototype ID Bank 1 | . 1 . Unreport Threat 1 | . . 1 Locate Traps 1 | . 1 . Maintenance Status 1 | . . 1 Transport Status 1 | . . 1 Hauler Manifests 1 | . 1 . Fabricator Hacks . | . . . Repair Station Hacks . | . . . Recycling Unit Hacks 3 | . 2 1 Report Inventory 2 | . 1 1 Retrieve Components 1 | . 1 . Scanalyzer . | . . . Garrison Access Hacks . | . . . Unauthorized Hacks 2 | . 2 . Terminals 1 | . 1 . Assimilate 1 | . 1 . Fabricators . | . . . Repair Stations . | . . . Recycling Units 1 | . 1 . Mask 1 | . 1 . Scanalyzers . | . . . Garrison Access . | . . . Data Cores Recovered 1 | . 1 . Used . | . . . Hacking Detections 8 | . 7 1 Full Trace Events 1 | . 1 . Feedback Events . | . . . Feedback Blocked . | . . . Robot Schematics Acquired . | . . . Robots Built . | . . . Authchips . | . . . Time . | . . . Total Robot Build Rating . | . . . Part Schematics Acquired . | . . . Parts Built . | . . . Authchips . | . . . Time . | . . . Total Part Build Rating . | . . . Parts Repaired . | . . . Time . | . . . Parts Recycled . | . . . Recycled Matter . | . . . Retrieved Matter . | . . . Retrieved Components 4 | . 4 . Parts Scanalyzed . | . . . Part Schematics Acquired . | . . . Parts Damaged . | . . . Bothacking | -11 -10 -9 ------------ Run | Yrd Mat Mat Used RIF Installer . | . . . Robots Hacked . | . . . Non-combat . | . . . Combat . | . . . Robot Hacks Applied . | . . . Relay Couplers Released . | . . . Fabnet Peak Effective % . | . . . Robots Rewired . | . . . Allies Hacked . | . . . Hacks Repelled . | . . . Allies | -11 -10 -9 -------- Run | Yrd Mat Mat Total Allies . | . . . Largest Group . | . . . Highest-Rated Group . | . . . Highest-Rated Ally . | . . . Total Orders . | . . . Ally Attacks . | . . . Total Damage . | . . . Kills . | . . . Allies Corrupted . | . . . Allies Melted . | . . . Intel | -11 -10 -9 ------- Run | Yrd Mat Mat Robot Analysis Total . | . . . Derelict Logs Recovered . | . . . Drone Launches . | . . . Drone Recoveries . | . . . Exploration | -11 -10 -9 ------------- Run | Yrd Mat Mat Turns Passed 2941 | 135 1241 1565 Spaces Moved 2235 | 95 1023 1117 Core 42 | 3 . 39 Treads . | . . . Legs . | . . . Wheels 1755 | 92 955 708 Hover . | . . . Flight 438 | . 68 370 Fastest Speed 31 | 50 80 31 Average Speed 91 | 84 89 94 Slowest Speed 600 | 95 197 600 Overloaded Moves . | . . . Propulsion Burnouts . | . . . Robots Hopped 2 | . . 2 Cave-ins Triggered 1 | . . 1 Exploration Rate (%) 56 | 5 98 66 Regions Visited 2 Branch Regions . Pre-discovered Areas . | . . . Known Exits Taken . | . . . Unknown Exits Taken 2 | 1 1 . Scrap Searched . | . . . Spaces Dug 34 | . 19 15 Terrain Destroyed 155 | . 24 131 Melee 19 | . 13 6 Projectile 13 | . 11 2 AOE 123 | . . 123 Terrain Rammed . | . . . Walls Destroyed . | . . . Machines Disabled . | . . . Actions | -11 -10 -9 --------- Run | Yrd Mat Mat Total 2833 | 122 1215 1496 Wait 285 | . 68 217 Move 2229 | 94 1022 1113 Hop 2 | . . 2 Pick Up 38 | 5 16 17 Fast Attach 26 | 8 4 14 Attach 15 | . 1 14 Detach 11 | 1 1 9 Swap 18 | . 8 10 Drop 30 | 1 18 11 Fire 121 | 13 54 54 Melee 46 | . 23 23 Ram 12 | . . 12 Kick . | . . . Crush . | . . . Escape Stasis . | . . . Rewire . | . . . Trap . | . . . Miscellaneous . | . . . Route ------- -11/Scrapyard -10/Materials (discovered 5 exits: *Mat x3 / [*Min] / [Sub]) -9/Materials (discovered 2 exits: [*Min] / [*Sto]) History --------- Turn | Location | Event 33 | -11/Scrapyard | Discovered new exit (range 14) 136 | -11/Scrapyard | Entered Materials 192 | -10/Materials | Discovered new exit (range 16) 309 | -10/Materials | Build established: Mutant 756 | -10/Materials | Discovered new exit (range 3) 778 | -10/Materials | Discovered new exit (range 14) 840 | -10/Materials | Discovered new exit (range 7) 1116 | -10/Materials | Discovered new exit (range 5) 1377 | -10/Materials | Entered another Materials area 1377 | -9/Materials | Evolved 2 slots: Propulsion x2 1558 | -9/Materials | Discovered new exit (range 15) 1788 | -9/Materials | Lost 3 parts (3n) 1793 | -9/Materials | Discovered new exit (range 7) 2122 | -9/Materials | Core integrity fell below 50% 2397 | -9/Materials | Core integrity fell below 20% 2418 | -9/Materials | Destroyed 7 combat bots 2445 | -9/Materials | Lost 5 parts (1p1n1u2w) 2943 | -9/Materials | Crushed by falling debris 2943 | -9/Materials | Smashed by cave-in Last Messages --------------- IART=MEJFJF5Q9RKHB1LYE9:9C3LD%990JH A-02 Transporter destroyed. System corrupted: Matter fused (-6). Acquired 41 matter. Acquired 23 matter. System corrupted: IFF burst signal emitted. A-02 Transporter destroyed. Acquired 47 matter. System corrupted: Matter fused (-6). Acquired Hvy. Assault Rifle. Acquired ECM Suite. System corrupted: Component data lost. System corrupted: Energy discharge (-33). Acquired Hrd. Light Armor Plating. System corrupted: Energy discharge (-27). Acquired Weapon Shielding. System corrupted: Component data lost. System corrupted: Matter fused (-6). The unstable cave ceiling collapses. Crushed by falling debris. Map ----- +----------------------------------------------------+ | | | ?????????????????????????????????????????????? | | ?????????????????????????????????????????????? | | ?????????????????????????????????????????????? | | ?????????????????????????????????????????????? | | ????????????????????#####????????????????????? | | ???????#####????????#####????????????????????? | | ######################=##????????????????????? | | #########T############ ##????????????????????? | | ## =##????????????????????? | | ## ################# # ##????????????????????? | | ## ## ###### ####????????????????????? | | ## ## ##??## ####????????????????????? | | ## ## ##??## ##??????????????????????? | | # ##??## ##??????????????????????? | | + ##??## ##??????????????????????? | | # ##??## ##??????????????????????? | | ### #! ##??## ##??????????????????????? | | ### # = ###### ######??????????????????? | | ### ################+######??????????????????? | | ## ####### # / ##??????????????????? | | ## + # ##??????????????????? | | ## ####### ! # """ ##??????????????????? | | ############ # """ ##??????????????????? | | #######???## + """ ##??????????????????? | | ##????????## # @#??????????????????? | | #????????#################??????????????????? | | #????????#################??????????????????? | | #???????????????????????????????????????????? | | #???????????????????????????????????????????? | | #???????????????????????????????????????????? | | #???????????????????????????????????????????? | | ##???????????????????????????????????????????? | | ?????????????????????????????????????????????? | | ###??????????????????????????????????????????? | | #####????????????????????????????????????????? | | #####???????????????????????????????????????? | | ????????????????????????????????????? | | #####???????????????????????????????????????? | | #######??????????????????????????????????????? | | #######??????????????????????????????????????? | | #??????????????????????????????????????? | | #??????????????????????????????????????? | | " " #??????????????????????????????????????? | | "Y" #??????????????????????????????????????? | | """ #??????????????????????????????????????? | | #####??######??????????????????????????? | | #+## ####"""""###????????????????????????? | | # # "#????????????????????????? | | + # "#????????????????????????? | +----------------------------------------------------+ Best States ------------- Heat Dissipation 28 Energy Generation 14 Energy Capacity 250 Matter Stores 300 Matter Capacity 300 Sight Range 16 Robot Scan Range 14 Terrain Scan Range 16 Terrain Scan Density 10 Armor Coverage 150 Evasion (%) 63 Item Schematics ----------------- None Robot Schematics ------------------ None Fabricated ------------ Nothing Alien Tech Used ----------------- None Achievements -------------- None Challenges ------------ None Game ------ Seed FlakAluminumVibroblade Manual? 0 Play Time 00:44:11 Cumulative 23.9 hours Start 2024.08.14 @ 02:55:40 End 2024.08.14 @ 03:45:27 Sessions 1 Manual Loads 0 Difficulty Rogue Special Mode None Game No. 27 Rogue 27 Adventurer 0 Explorer 0 Win Type - Total 0 Types 0/0/0/0/0/0/0/0/0 Lore% 5 Gallery% 22 Achievement% 21 Wizard Run 0 Options --------- Layout 1 ASCII 0 Keyboard 1 Movement Vi Keybinds 0 Fullscreen 1 Font 32/SmallcapsGlow Map View 77x35 Zoom Use 0% Tactical HUD 0 Map Filters NONE Filters NONE Steam 1 RUN: 54393084-5c59-4143-b421-d9842be5cdb6